{"text_format":"3","workbook":"xlsx","n_sheets":2,"sheets":["list","data"],"not_rendered":{"external_links":1},"read":"whole","date_system":"1900"}

{"sheet":"list","index":0,"n_rows":10,"n_cols":17,"rows_kept":10}
["№","СНИЛС","Фамлия","Имя","Отчество","Пол","Дата рождения","Участник с ОВЗ","Класс","Класс участия","Балл","Макс. Балл","Статус","Призер МЭ прошлого года","Учитель","Место работы учителя","Направление, вид практики  по технологии"]
[1,2,3,4,5,6,7,8,9,10,11,12,13,14,15,16,17]
[1,null,{"$f":"'[1]Список учащихся (олимпиада)'!C75","v":"Горбунова"},{"$f":"'[1]Список учащихся (олимпиада)'!D75","v":"Виктория"},{"$f":"'[1]Список учащихся (олимпиада)'!E75","v":"Евгеньевна"},{"$f":"'[1]Список учащихся (олимпиада)'!F75","v":"Ж"},null,{"$f":"'[1]Список учащихся (олимпиада)'!H75","v":"нет"},{"$f":"'[1]Список учащихся (олимпиада)'!I75","v":8},8,22,61,"участник",null,"Шкудов Виталий Николаевич","МБОУ Среднедевятовская СОШ"]
[2,null,{"$f":"'[1]Список учащихся (олимпиада)'!C83","v":"Ковалева"},{"$f":"'[1]Список учащихся (олимпиада)'!D83","v":"Елизавета"},{"$f":"'[1]Список учащихся (олимпиада)'!E83","v":"Владимировна"},{"$f":"'[1]Список учащихся (олимпиада)'!F83","v":"Ж"},null,{"$f":"'[1]Список учащихся (олимпиада)'!H83","v":"нет"},{"$f":"'[1]Список учащихся (олимпиада)'!I83","v":9},9,20,56,"участник",null,"Шкудов Виталий Николаевич","МБОУ Среднедевятовская СОШ"]
[3,null,{"$f":"'[1]Список учащихся (олимпиада)'!C92","v":"Нуждин"},{"$f":"'[1]Список учащихся (олимпиада)'!D92","v":"Максим"},{"$f":"'[1]Список учащихся (олимпиада)'!E92","v":"Алексеевич"},{"$f":"'[1]Список учащихся (олимпиада)'!F92","v":"М"},null,{"$f":"'[1]Список учащихся (олимпиада)'!H92","v":"нет"},{"$f":"'[1]Список учащихся (олимпиада)'!I92","v":10},10,46,62,"победитель",null,"Шкудов Виталий Николаевич","МБОУ Среднедевятовская СОШ"]
[4,null,{"$f":"'[1]Список учащихся (олимпиада)'!C97","v":"Голованов"},{"$f":"'[1]Список учащихся (олимпиада)'!D97","v":"Виктор"},{"$f":"'[1]Список учащихся (олимпиада)'!E97","v":"Денисович"},{"$f":"'[1]Список учащихся (олимпиада)'!F97","v":"М"},null,{"$f":"'[1]Список учащихся (олимпиада)'!H97","v":"нет"},{"$f":"'[1]Список учащихся (олимпиада)'!I97","v":11},11,58,71,"победитель",null,"Шкудов Виталий Николаевич","МБОУ Среднедевятовская СОШ"]
[5]
[6]
[7]
[8]

{"sheet":"data","index":1,"n_rows":25,"n_cols":3,"rows_kept":25,"hidden":true}
[]
["Техника, технология и техническое творчество .  Ручная обработка древесины"]
["Техника, технология и техническое творчество .  Ручная обработка металла"]
["Техника, технология и техническое творчество .  Механическая обработка древесины"]
["Техника, технология и техническое творчество .  Механическая обработка металла"]
["Техника, технология и техническое творчество .  Электротехника"]
["Техника, технология и техническое творчество .  Робототехника"]
["Техника, технология и техническое творчество .  3d - моделирование и печать"]
["Техника, технология и техническое творчество .  Обработка материалов на лазерно-гравировальной машине"]
["Техника, технология и техническое творчество .  Промышленный дизайн"]
["Культура дома, дизайн и технологии .  Обработка швейного изделия или узла + моделирование швейных изделий"]
["Культура дома, дизайн и технологии .  Обработка швейного изделия или узла + моделирование швейных изделий с использованием графических редакторов"]
["Культура дома, дизайн и технологии .  Обработка швейного изделия или узла на швейно-вышивальном оборудовании + моделирование швейных изделий"]
["Культура дома, дизайн и технологии .  Обработка швейного изделия или узла на швейно-вышивальном оборудовании + моделирование швейных изделий с использованием графических редакторов"]
["Культура дома, дизайн и технологии .  Робототехника"]
["Культура дома, дизайн и технологии .  3d - моделирование и печать"]
["Культура дома, дизайн и технологии .  Обработка материалов на лазерно-гравировальной машине"]
["Культура дома, дизайн и технологии .  Промышленный дизайн"]
["Роботехника .  "]
["Информационная безопасность ."]
[]
[]
["участник"]
["призер",null,"да"]
["победитель"]